fUSD/lending_fUSD_20241202
["ID","MTS","AMOUNT","RATE_DAILY","PERIOD"]
[343968987,1733162384004,1037.43,0.00025,120]
[343968988,1733162384271,500.0,0.00025,120]
[343968989,1733162385111,500.0,0.00025,120]
[343968990,1733162386275,802.1,0.00025,120]
[343968991,1733162389324,5602.63,0.00025,120]
[343968992,1733162390004,10961.16,0.00025,120]
[343968993,1733162394040,755.82,0.00025,120]
[343968994,1733162394936,30265.79,0.00025,120]
[343968995,1733162395128,4395.53,0.00025,120]
[343968996,1733162397233,500.0,0.00025,120]
[343968997,1733162400049,3426.03,0.00025,120]
[343968998,1733162400523,3331.52,0.00025,120]
[343968999,1733162404358,2972.75,0.00025,120]
[343969000,1733162408512,3034.66,0.00025,120]
[343969001,1733162409984,28571.1,0.00025,120]
[343969002,1733162411951,1532.22,0.00025,120]
[343969003,1733162412521,3000.0,0.00025,120]
[343969004,1733162413241,1226.29,0.00025,120]
[343969005,1733162417911,1582.07,0.00025,120]
[343969006,1733162419213,500.0,0.00025,120]
[343969007,1733162419923,3585.05,0.00025,120]
[343969008,1733162421055,500.0,0.00025,120]
[343969009,1733162422740,1797.73,0.00025,120]
[343969010,1733162422994,500.0,0.00025,120]
[343969011,1733162423560,1808.34,0.00025,120]
[343969012,1733162423870,500.0,0.00025,120]
[343969013,1733162425391,41288.19,0.00025,120]
[343969014,1733162427257,9556.34,0.00025,120]
[343969015,1733162427318,500.0,0.00025,120]
[343969016,1733162428611,12943.68,0.00025,120]
[343969017,1733162428883,2454.53,0.00025,120]
[343969018,1733162429857,3181.69,0.00025,120]
[343969019,1733162430347,500.0,0.00025,120]
[343969020,1733162430622,500.0,0.00025,120]
[343969021,1733162431589,500.0,0.00025,120]
[343969022,1733162431704,1154.15,0.00025,120]
[343969023,1733162433533,6828.34,0.00025,120]
[343969024,1733162433987,729.09,0.00025,120]
[343969025,1733162434635,2834.55,0.00025,120]
[343969026,1733162435262,500.0,0.00025,120]
[343969027,1733162435322,3483.6,0.00025,120]
[343969028,1733162435743,500.0,0.00025,120]
[343969029,1733162435974,10759.34,0.00025,120]
[343969030,1733162438770,4961.48,0.00025,120]
[343969031,1733162439445,500.0,0.00025,120]
[343969032,1733162440256,4393.6,0.00025,120]
[343969033,1733162441282,314.62054968,0.00025,120]
[343969034,1733162441390,1661.05,0.00025,120]
[343969035,1733162441785,19914.93,0.00025,120]
[343969036,1733162442028,2827.8,0.00025,120]
[343969037,1733162443343,500.0,0.00025,120]
[343969038,1733162443887,500.0,0.00025,120]
[343969039,1733162444119,271.64862977,0.00025,120]
[343969040,1733162444400,500.0,0.00025,120]
[343969041,1733162444981,500.0,0.00025,120]
[343969042,1733162445246,1653.64,0.00025,120]
[343969043,1733162446376,822.0,0.00025,120]
[343969044,1733162446647,2861.86,0.00025,120]
[343969045,1733162447626,691.03,0.00025,120]
[343969046,1733162448170,500.0,0.00025,120]
[343969047,1733162450346,500.0,0.00025,120]
[343969048,1733162450394,314.544772,0.00025,120]
[343969049,1733162453152,1242.93,0.00025,120]
[343969050,1733162453299,5580.88,0.00025,120]
[343969051,1733162453375,500.0,0.00025,120]
[343969052,1733162453425,313.7808919,0.00025,120]
[343969053,1733162453679,500.0,0.00025,120]
[343969054,1733162454021,500.0,0.00025,120]
[343969055,1733162454526,500.0,0.00025,120]
[343969056,1733162455274,637.0242533,0.00025,120]
[343969057,1733162456931,710.04,0.00025,120]
[343969058,1733162456989,516.08,0.00025,120]
[343969059,1733162457568,206.43976149,0.00025,120]
[343969060,1733162457859,500.0,0.00025,120]
[343969061,1733162458306,704.28,0.00025,120]
[343969062,1733162458552,6515.93,0.00025,120]
[343969063,1733162459698,684.98,0.00025,120]
[343969064,1733162459778,3708.48,0.00025,120]
[343969065,1733162460052,314.39059517,0.00025,120]
[343969066,1733162462223,500.0,0.00025,120]
[343969067,1733162462283,500.0,0.00025,120]
[343969068,1733162462916,500.0,0.00025,120]
[343969069,1733162462973,500.0,0.00025,120]
[343969070,1733162463735,500.0,0.00025,120]
[343969071,1733162464528,2276.22,0.00025,120]
[343969072,1733162464865,4898.57,0.00025,120]
[343969073,1733162465003,3331.6,0.00025,120]
[343969074,1733162465453,500.0,0.00025,120]
[343969075,1733162466349,801.18,0.00025,120]
[343969076,1733162466524,500.0,0.00025,120]
[343969077,1733162466819,1032.64,0.00025,120]
[343969078,1733162467771,2559.32,0.00025,120]
[343969079,1733162468173,3078.28,0.00025,120]
[343969080,1733162468882,6494.21,0.00025,120]
[343969081,1733162470596,8228.86,0.00025,120]
[343969082,1733162474801,500.0,0.00025,120]
[343969083,1733162474903,166.67,7.017e-05,2]
[343969084,1733162475929,574.61,0.00025,120]
[343969085,1733162476412,11192.74,0.00025,120]
[343969086,1733162476639,500.0,0.00025,120]
[343969087,1733162477307,927.71,0.00025,120]
[343969088,1733162477472,500.0,0.00025,120]
[343969089,1733162477527,500.0,0.00025,120]
[343969090,1733162477591,500.0,0.00025,120]
[343969091,1733162477641,4824.81,0.00025,120]
[343969092,1733162478067,500.0,0.00025,120]
[343969093,1733162478119,520.0258572,0.00025,120]
[343969094,1733162478563,3867.45,0.00025,120]
[343969095,1733162479154,1112.39,0.00025,120]
[343969096,1733162479204,822.2,0.00025,120]
[343969097,1733162480305,3165.08,0.00025,120]
[343969098,1733162482616,500.0,0.00025,120]
[343969099,1733162482911,1675.21,0.00025,120]
[343969100,1733162483802,500.0,0.00025,120]
[343969101,1733162484116,523.28,0.00025,120]
[343969102,1733162486265,16538.52,0.00025,120]
[343969103,1733162486539,3599.32,0.00025,120]
[343969104,1733162487138,500.0,0.00025,120]
[343969105,1733162487691,500.0,0.00025,120]
[343969106,1733162487757,1268.63,0.00025,120]
[343969107,1733162489189,2687.92,0.00025,120]
[343969108,1733162489397,500.0,0.00025,120]
[343969109,1733162489943,7744.36,0.00025,120]
[343969110,1733162490133,500.0,0.00025,120]
[343969111,1733162490295,500.0,0.00025,120]
[343969112,1733162490497,500.0,0.00025,120]
[343969113,1733162490944,500.0,0.00025,120]
[343969114,1733162491568,1285.83,0.00025,120]
[343969115,1733162491624,9867.32,0.00025,120]
[343969116,1733162491998,500.0,0.00025,120]
[343969117,1733162494377,500.0,0.00025,120]
[343969118,1733162497436,1105.0,0.00025,120]
[343969119,1733162498388,500.0,0.00025,120]
[343969120,1733162498465,500.0,0.00025,120]
[343969121,1733162499523,4276.14,0.00025,120]
[343969122,1733162499986,13447.67,0.00025,120]
[343969123,1733162500037,645.12,0.00025,120]
[343969124,1733162500284,500.0,0.00025,120]
[343969125,1733162500524,1025.94,0.00025,120]
[343969126,1733162501343,500.0,0.00025,120]
[343969127,1733162501715,7294.58,0.00025,120]
[343969128,1733162502166,24717.86,0.00025,120]
[343969129,1733162504478,2667.86,0.00025,120]
[343969130,1733162505954,3183.8,0.00025,120]
[343969131,1733162506426,2745.44,0.00025,120]
[343969132,1733162506577,500.0,0.00025,120]
[343969133,1733162506814,500.0,0.00025,120]
[343969134,1733162508509,500.0,0.00025,120]
[343969135,1733162508927,500.0,0.00025,120]
[343969136,1733162509397,500.0,0.00025,120]
[343969137,1733162509891,500.0,0.00025,120]
[343969138,1733162510827,7469.92,0.00025,120]
[343969139,1733162511425,887.67,0.00025,120]
[343969140,1733162511870,6337.18,0.00025,120]
[343969141,1733162512424,582.62159628,0.00025,120]
[343969142,1733162513820,500.0,0.00025,120]
[343969143,1733162514144,700.92,0.00025,120]
[343969144,1733162514566,4923.47,0.00025,120]
[343969145,1733162514739,563.27081004,0.00025,120]
[343969146,1733162515067,500.0,0.00025,120]
[343969147,1733162515169,1878.91,0.00025,120]
[343969148,1733162516013,500.0,0.00025,120]
[343969149,1733162516216,500.0,0.00025,120]
[343969150,1733162517959,730.79,0.00025,120]
[343969151,1733162518448,500.0,0.00025,120]
[343969152,1733162520099,500.0,0.00025,120]
[343969153,1733162520932,500.0,0.00025,120]
[343969154,1733162521044,9962.74,0.00025,120]
[343969155,1733162522398,500.0,0.00025,120]
[343969156,1733162523478,727.11,0.00025,120]
[343969157,1733162523669,20223.04,0.00025,120]
[343969158,1733162524023,4573.18,0.00025,120]
[343969159,1733162524097,1061.81,0.00025,120]
[343969160,1733162524377,510.88230031,0.00025,120]
[343969161,1733162524579,1032.22,0.00025,120]
[343969162,1733162524787,500.0,0.00025,120]
[343969163,1733162524916,7679.18,0.00025,120]
[343969164,1733162525299,2394.16,0.00025,120]
[343969165,1733162526873,1874.71,0.00025,120]
[343969166,1733162527356,2664.42,0.00025,120]
[343969167,1733162529248,500.0,0.00025,120]
[343969168,1733162529666,1507.97,0.00025,120]
[343969169,1733162532205,500.0,0.00025,120]
[343969170,1733162532545,500.0,0.00025,120]
[343969171,1733162533372,2439.75,0.00025,120]
[343969172,1733162533421,500.0,0.00025,120]
[343969173,1733162534315,785.49,0.00025,120]
[343969174,1733162534549,500.0,0.00025,120]
[343969175,1733162535063,1176.34,0.00025,120]
[343969176,1733162535154,4550.88,0.00025,120]
[343969177,1733162535563,500.0,0.00025,120]
[343969178,1733162536362,819.94,0.00025,120]
[343969179,1733162537364,500.0,0.00025,120]
[343969180,1733162538087,9845.31,0.00025,120]
[343969181,1733162538161,668.36,0.00025,120]
[343969182,1733162539452,3974.15,0.00025,120]
[343969183,1733162539658,962.28,0.00025,120]
[343969184,1733162542566,587.42,0.00025,120]
[343969185,1733162542645,500.0,0.00025,120]
[343969186,1733162543203,500.0,0.00025,120]
[343969187,1733162543470,500.0,0.00025,120]
[343969188,1733162544056,3218.12,0.00025,120]
[343969189,1733162544696,500.0,0.00025,120]
[343969190,1733162545449,500.0,0.00025,120]
[343969191,1733162546212,3137.75,0.00025,120]
[343969192,1733162546903,500.0,0.00025,120]
[343969193,1733162547477,2681.66,0.00025,120]
[343969194,1733162547566,5493.62,0.00025,120]
[343969195,1733162547910,649.46,0.00025,120]
[343969196,1733162547962,7890.43,0.00025,120]
[343969197,1733162548842,500.0,0.00025,120]
[343969198,1733162549420,9057.31,0.00025,120]
[343969199,1733162550726,500.0,0.00025,120]
[343969200,1733162551300,2508.96,0.00025,120]
[343969201,1733162554003,500.0,0.00025,120]
[343969202,1733162554065,1034.88,0.00025,120]
[343969203,1733162554536,500.0,0.00025,120]
[343969204,1733162554633,500.0,0.00025,120]
[343969205,1733162555515,500.0,0.00025,120]
[343969206,1733162556029,4293.19,0.00025,120]
[343969207,1733162556705,1555.94,0.00025,120]
[343969208,1733162557317,500.0,0.00025,120]
[343969209,1733162557528,624.41,0.00025,120]
[343969210,1733162557598,521.3,0.00025,120]
[343969211,1733162557654,1291.52,0.00025,120]
[343969212,1733162558193,500.0,0.00025,120]
[343969213,1733162558363,4502.52,0.00025,120]
[343969214,1733162560457,1736.01,0.00025,120]
[343969215,1733162561178,578.75,0.00025,120]
[343969216,1733162561951,4173.34,0.00025,120]
[343969217,1733162562443,4236.81,0.00025,120]
[343969218,1733162566206,500.0,0.00025,120]
[343969219,1733162567360,500.0,0.00025,120]
[343969220,1733162567424,500.0,0.00025,120]
[343969221,1733162568426,6145.0,0.00025,120]
[343969222,1733162568779,502.13,0.00025,120]
[343969223,1733162568835,773.38,0.00025,120]
[343969224,1733162569082,500.0,0.00025,120]
[343969225,1733162570971,5897.17,0.00025,120]
[343969226,1733162571135,1093.01,0.00025,120]
[343969227,1733162572368,3754.07,0.00025,120]
[343969228,1733162572446,500.0,0.00025,120]
[343969229,1733162572523,657.32,0.00025,120]
[343969230,1733162574343,500.0,0.00025,120]
[343969231,1733162577286,500.0,0.00025,120]
[343969232,1733162577484,735.36,0.00025,120]
[343969233,1733162577531,617.12,0.00025,120]
[343969234,1733162577585,3935.54,0.00025,120]
[343969235,1733162578436,500.0,0.00025,120]
[343969236,1733162579703,500.0,0.00025,120]
[343969237,1733162579845,500.0,0.00025,120]
[343969238,1733162580429,1643.06,0.00025,120]
[343969239,1733162580648,525.71,0.00025,120]
[343969240,1733162580790,821.92,0.00025,120]
[343969241,1733162582219,3185.67,0.00025,120]
[343969242,1733162583095,1934.13,0.00025,120]
[343969243,1733162583367,500.0,0.00025,120]
[343969244,1733162584478,503.1313365,0.00025,120]
[343969245,1733162585648,500.0,0.00025,120]
[343969246,1733162586213,2583.58,0.00025,120]
[343969247,1733162586467,1677.75,0.00025,120]
[343969248,1733162586557,3223.43,0.00025,120]
[343969249,1733162586761,500.0,0.00025,120]
[343969250,1733162589053,500.0,0.00025,120]
[343969251,1733162589842,526.72653881,0.00025,120]
[343969252,1733162591847,2626.42,0.00025,120]
[343969253,1733162592179,500.0,0.00025,120]
[343969254,1733162592426,500.0,0.00025,120]
[343969255,1733162592655,1158.91,0.00025,120]
[343969256,1733162592930,19613.51,0.00025,120]
[343969257,1733162595032,504.21375773,0.00025,120]
[343969258,1733162595903,4853.33,0.00025,120]
[343969259,1733162596293,2827.0,0.00025,120]
[343969260,1733162596819,500.0,0.00025,120]
[343969261,1733162597191,500.0,0.00025,120]
[343969262,1733162597237,2088.38,0.00025,120]
[343969263,1733162597327,200.0,0.00024667,120]
[343969264,1733162598172,500.0,0.00025,120]
[343969266,1733162599933,1108.37,0.00025,120]
[343969267,1733162600185,653.78,0.00025,120]
[343969268,1733162600309,500.0,0.00025,120]
[343969269,1733162601360,500.0,0.00025,120]
[343969270,1733162601602,500.0,0.00025,120]
[343969271,1733162601780,500.0,0.00025,120]
[343969272,1733162603500,772.75,0.00025,120]
[343969273,1733162603563,1706.73,0.00025,120]
[343969274,1733162604009,2873.58,0.00025,120]
[343969275,1733162604668,500.0,0.00025,120]
[343969276,1733162605068,3107.16,0.00025,120]
[343969277,1733162605142,930.36,0.00025,120]
[343969278,1733162605208,500.0,0.00025,120]
[343969279,1733162605298,500.0,0.00025,120]
[343969280,1733162606436,2508.33,0.00025,120]
[343969281,1733162606743,3342.45,0.00025,120]
[343969282,1733162606865,776.64,0.00025,120]
[343969283,1733162607921,3786.92,0.00025,120]
[343969284,1733162608170,500.0,0.00025,120]
[343969285,1733162608594,2079.25,0.00025,120]
[343969286,1733162611347,517.62,0.00025,120]
[343969287,1733162611473,734.25,0.00025,120]
[343969288,1733162611792,500.0,0.00025,120]
[343969289,1733162612522,1773.57,0.00025,120]
[343969290,1733162614048,500.0,0.00025,120]
[343969291,1733162614215,500.0,0.00025,120]
[343969292,1733162614397,2241.26,0.00025,120]
[343969293,1733162615523,500.0,0.00025,120]
[343969294,1733162615594,500.0,0.00025,120]
[343969295,1733162618733,890.84,0.00025,120]
[343969296,1733162618916,500.0,0.00025,120]
[343969297,1733162619642,5390.02,0.00025,120]
[343969298,1733162619701,3200.4,0.00025,120]
[343969299,1733162619798,500.0,0.00025,120]
[343969300,1733162620547,878.42,0.00025,120]
[343969301,1733162625241,500.0,0.00025,120]
[343969302,1733162625370,500.0,0.00025,120]
[343969303,1733162626153,1004.31,0.00025,120]
[343969304,1733162626209,500.0,0.00025,120]
[343969305,1733162626453,871.83,0.00025,120]
[343969306,1733162626517,1535.0,0.00025,120]
[343969307,1733162627117,2132.89,0.00025,120]
[343969308,1733162627720,500.0,0.00025,120]
[343969309,1733162628319,2420.36,0.00025,120]
[343969310,1733162628839,500.0,0.00025,120]
[343969311,1733162628892,1295.59,0.00025,120]
[343969312,1733162629069,500.0,0.00025,120]
[343969313,1733162630063,500.0,0.00025,120]
[343969314,1733162631361,4435.63,0.00025,120]
[343969315,1733162631630,1781.64,0.00025,120]
[343969316,1733162631685,610.73,0.00025,120]
[343969317,1733162631939,1781.9,0.00025,120]
[343969318,1733162634321,500.0,0.00025,120]
[343969319,1733162635318,509.73039681,0.00025,120]
[343969320,1733162636330,500.0,0.00025,120]
[343969321,1733162637824,219.83085247,0.00025,120]
[343969322,1733162638146,4477.75,0.00025,120]
[343969323,1733162638267,500.0,0.00025,120]
[343969324,1733162639995,500.0,0.00025,120]
[343969325,1733162640051,619.73,0.00025,120]
[343969326,1733162641114,1365.3,0.00025,120]
[343969327,1733162641502,1580.49,0.00025,120]
[343969328,1733162642445,500.0,0.00025,120]
[343969329,1733162642508,500.0,0.00025,120]
[343969330,1733162644698,1041.94,0.00025,120]
[343969331,1733162645958,29046.38,0.00025,120]
[343969332,1733162646373,3199.69,0.00025,120]
[343969333,1733162646519,500.0,0.00025,120]
[343969334,1733162647598,1428.42,0.00025,120]
[343969335,1733162648437,2129.3,0.00025,120]
[343969336,1733162648590,4526.34,0.00025,120]
[343969337,1733162648693,3576.44,0.00025,120]
[343969338,1733162649189,44842.8,0.00025,120]
[343969339,1733162649408,500.0,0.00025,120]
[343969340,1733162649590,500.0,0.00025,120]
[343969341,1733162649827,941.54,0.00025,120]
[343969342,1733162650903,1837.4,0.00025,120]
[343969343,1733162653376,500.0,0.00025,120]
[343969344,1733162654620,500.0,0.00025,120]
[343969345,1733162656015,640.47,0.00025,120]
[343969346,1733162657631,9158.16,0.00025,120]
[343969347,1733162659025,2289.62,0.00025,120]
[343969348,1733162659162,1239.7,0.00025,120]
[343969349,1733162659281,500.0,0.00025,120]
[343969350,1733162659345,500.0,0.00025,120]
[343969351,1733162659579,500.0,0.00025,120]
[343969352,1733162659882,500.0,0.00025,120]
[343969353,1733162661950,977.01,0.00025,120]
[343969354,1733162662426,603.58,0.00025,120]
[343969355,1733162662592,15688.24,0.00025,120]
[343969356,1733162662912,500.0,0.00025,120]
[343969357,1733162664414,1917.68,0.00025,120]
[343969358,1733162664563,679.34,0.00025,120]
[343969359,1733162664637,500.0,0.00025,120]
[343969360,1733162665188,500.0,0.00025,120]
[343969361,1733162665358,28756.74,0.00025,120]
[343969362,1733162665704,500.0,0.00025,120]
[343969363,1733162667528,500.0,0.00025,120]
[343969364,1733162668284,4273.03,0.00025,120]
[343969365,1733162668839,2493.06,0.00025,120]
[343969366,1733162669200,500.0,0.00025,120]
[343969367,1733162669392,659.06,0.00025,120]
[343969368,1733162670153,500.0,0.00025,120]
[343969369,1733162671066,1489.35,0.00025,120]
[343969370,1733162671338,500.0,0.00025,120]
[343969371,1733162673244,1214.19,0.00025,120]
[343969372,1733162674112,798.12,0.00025,120]
[343969373,1733162675322,719.87,0.00025,120]
[343969374,1733162675473,529.91,0.00025,120]
[343969375,1733162676064,3400.95,0.00025,120]
[343969376,1733162676756,500.0,0.00025,120]
[343969377,1733162676864,10593.79,0.00025,120]
[343969378,1733162678286,500.0,0.00025,120]
[343969379,1733162678628,500.0,0.00025,120]
[343969380,1733162679322,39567.85,0.00025,120]
[343969381,1733162679384,1477.85,0.00025,120]
[343969382,1733162680563,737.43,0.00025,120]
[343969383,1733162680955,1888.88,0.00025,120]
[343969384,1733162681776,2543.27,0.00025,120]
[343969385,1733162681837,500.0,0.00025,120]
[343969386,1733162681896,500.0,0.00025,120]
[343969387,1733162682726,5410.84,0.00025,120]
[343969388,1733162682933,10584.76,0.00025,120]
[343969389,1733162683908,500.0,0.00025,120]
[343969390,1733162685217,1660.85,0.00025,120]
[343969391,1733162686798,6718.27,0.00025,120]
[343969392,1733162687214,1230.83,0.00025,120]
[343969393,1733162687267,500.0,0.00025,120]
[343969394,1733162689745,500.0,0.00025,120]
[343969395,1733162689796,500.0,0.00025,120]
[343969396,1733162690605,500.0,0.00025,120]
[343969397,1733162690980,500.0,0.00025,120]
[343969398,1733162691879,500.0,0.00025,120]
[343969399,1733162692487,500.0,0.00025,120]
[343969400,1733162692556,7885.99,0.00025,120]
[343969401,1733162692817,6840.37,0.00025,120]
[343969402,1733162692870,500.0,0.00025,120]
[343969403,1733162693058,500.0,0.00025,120]
[343969404,1733162693497,500.0,0.00025,120]
[343969405,1733162693902,1432.32,0.00025,120]
[343969406,1733162694204,1026.5,0.00025,120]
[343969407,1733162694623,1067.22,0.00025,120]
[343969408,1733162694674,27715.89,0.00025,120]
[343969409,1733162695280,500.0,0.00025,120]
[343969410,1733162696118,2366.97,0.00025,120]
[343969411,1733162696269,1047.05,0.00025,120]
[343969412,1733162697095,500.0,0.00025,120]
[343969413,1733162697226,500.0,0.00025,120]
[343969414,1733162700580,1405.78,0.00025,120]
[343969415,1733162701321,500.0,0.00025,120]
[343969416,1733162703510,2506.0,0.00025,120]
[343969417,1733162704011,4694.47,0.00025,120]
[343969418,1733162705270,2154.47,0.00025,120]
[343969419,1733162705526,1035.62,0.00025,120]
[343969420,1733162705806,1664.9,0.00025,120]
[343969421,1733162707556,818.73,0.00025,120]
[343969422,1733162707681,993.57,0.00025,120]
[343969423,1733162707738,2360.22,0.00025,120]
[343969424,1733162708384,500.0,0.00025,120]
[343969425,1733162708454,3236.92,0.00025,120]
[343969426,1733162708577,500.0,0.00025,120]
[343969427,1733162709472,7484.18,0.00025,120]
[343969428,1733162709641,6047.12,0.00025,120]
[343969429,1733162711584,500.0,0.00025,120]
[343969430,1733162711671,500.0,0.00025,120]
[343969431,1733162713151,500.0,0.00025,120]
[343969432,1733162714307,46901.84,0.00025,120]
[343969433,1733162714809,578.33,0.00025,120]
[343969434,1733162715027,500.0,0.00025,120]
[343969435,1733162716650,12404.36,0.00025,120]
[343969436,1733162717056,500.0,0.00025,120]
[343969437,1733162717615,2275.87,0.00025,120]
[343969438,1733162717726,1506.84,0.00025,120]
[343969439,1733162719739,6990.64,0.00025,120]
[343969440,1733162722814,827.11,0.00025,120]
[343969441,1733162723081,4999.96000001,0.00025,120]
[343969442,1733162723482,500.0,0.00025,120]
[343969443,1733162725235,213.44448663,6.929e-05,2]
[343969444,1733162726237,766.77,0.00025,120]
[343969445,1733162726299,500.0,0.00025,120]
[343969446,1733162726645,10798.88,0.00025,120]
[343969447,1733162726838,500.0,0.00025,120]
[343969448,1733162726903,532.7,0.00025,120]
[343969449,1733162727236,3706.31,0.00025,120]
[343969450,1733162727338,747.01,0.00025,120]
[343969451,1733162727561,759.62,0.00025,120]
[343969452,1733162727838,10394.37,0.00025,120]
[343969453,1733162727927,500.0,0.00025,120]
[343969454,1733162728275,1797.35,0.00025,120]
[343969455,1733162728831,19085.14,0.00025,120]
[343969456,1733162729443,9551.56,0.00025,120]
[343969457,1733162730174,3163.81,0.00025,120]
[343969458,1733162730315,7368.47,0.00025,120]
[343969459,1733162730441,3729.75,0.00025,120]
[343969460,1733162733913,500.0,0.00025,120]
[343969461,1733162735594,500.0,0.00025,120]
[343969462,1733162736090,500.0,0.00025,120]
[343969478,1733162736501,500.0,0.00025,120]
[343969525,1733162737625,2146.82,0.00025,120]
[343969581,1733162738862,500.0,0.00025,120]
[343969589,1733162739012,500.0,0.00025,120]
[343969598,1733162739189,3195.64,0.00025,120]
[343969601,1733162739246,1470.74,0.00025,120]
[343969605,1733162739314,500.0,0.00025,120]
[343969629,1733162739821,9672.57,0.00025,120]
[343969640,1733162740145,501.47,0.00025,120]
[343969647,1733162740406,850.4,0.00025,120]
[343969648,1733162740471,5324.9,0.00025,120]
[343969649,1733162742619,2680.29,0.00025,120]
[343969650,1733162743161,500.0,0.00025,120]
[343969651,1733162743556,1221.72,0.00025,120]
[343969718,1733162745545,500.0,0.00025,120]
[343969724,1733162745650,500.0,0.00025,120]
[343969758,1733162746434,500.0,0.00025,120]
[343969760,1733162747438,500.0,0.00025,120]
[343969761,1733162747850,4097.97,0.00025,120]
[343969762,1733162747906,1513.8,0.00025,120]
[343969763,1733162748058,4213.29,0.00025,120]
[343969764,1733162748118,500.0,0.00025,120]
[343969765,1733162749090,703.01,0.00025,120]
[343969766,1733162749249,6084.25,0.00025,120]
[343969767,1733162749308,568.69,0.00025,120]